bitfinex/quotes_BTCUSD_20250109
["timestamp","ask_amount","ask_price","bid_price","bid_amount"]
[1736451660183,0.002,92999.0,92997.0,0.215058]
[1736451660393,0.002,92999.0,92998.0,0.10537487]
[1736451660605,0.002,92999.0,92991.0,0.293274]
[1736451660606,0.002,92999.0,92991.0,0.0782]
[1736451661115,1.07395236,93006.0,92995.0,0.215063]
[1736451661266,0.001,92998.0,92995.0,0.215063]
[1736451661687,1.07395236,93006.0,92995.0,0.20606298]
[1736451661901,0.215042,93005.0,92995.0,0.20606298]
[1736451662621,1.07395236,93006.0,92995.0,0.20606298]
[1736451662828,1.07395236,93006.0,92995.0,0.20806298]
[1736451664042,0.00014877,93011.0,92995.0,0.12527728]
[1736451664287,0.00014877,93011.0,92996.0,0.215063]
[1736451664487,0.001,93006.0,92996.0,0.215063]
[1736451664934,0.001,93006.0,93003.0,0.215045]
[1736451665358,0.001,93006.0,93003.0,0.43009]
[1736451665842,0.00014877,93011.0,93003.0,0.215045]
[1736451666222,0.215032,93009.0,92992.0,0.215071]
[1736451666423,0.215044,93005.0,93003.0,0.001]
[1736451666670,0.215044,93005.0,92992.0,0.215071]
[1736451666671,0.215044,93005.0,92992.0,0.20707098]
[1736451667086,0.215044,93005.0,93003.0,0.001]
[1736451667431,0.215043,93005.0,92992.0,0.20707098]
[1736451667636,0.06388674,93004.0,92992.0,0.20707098]
[1736451668769,0.06388674,93004.0,92992.0,0.42214198]
[1736451668931,0.06388674,93004.0,93003.0,0.001]
[1736451669128,0.215043,93005.0,92992.0,0.42314198]
[1736451669372,0.215043,93005.0,92992.0,0.42214198]
[1736451669577,0.001,93004.0,92992.0,0.42214198]
[1736451669784,0.1336846,93000.0,92987.0,0.215083]
[1736451670823,0.215056,92999.0,92987.0,0.215083]
[1736451671028,1.28900836,92999.0,92987.0,0.215083]
[1736451671606,1.07395236,92999.0,92990.0,0.215074]
[1736451672601,0.215058,92998.0,92987.0,0.20808298]
[1736451672872,0.23513572,92998.0,92987.0,0.20608298]
[1736451673081,0.02007772,92998.0,92987.0,0.20608298]
[1736451673702,0.215063,92996.0,92983.0,0.215093]
[1736451673879,0.02007772,92998.0,92981.0,0.215097]
[1736451674080,0.215071,92993.0,92981.0,0.215097]
[1736451674834,0.215071,92993.0,92980.0,0.0775]
[1736451675245,0.02007772,92992.0,92981.0,0.215097]
[1736451676471,0.02107772,92992.0,92981.0,0.215097]
[1736451676698,0.02007772,92991.0,92981.0,0.20609698]
[1736451676960,0.02007772,92991.0,92980.0,0.0775]
[1736451677162,0.3487606,92990.0,92975.0,0.21511]
[1736451677488,0.3487606,92990.0,92960.0,0.19306428]
[1736451677489,0.215139,92963.0,92960.0,0.19306428]
[1736451677699,1.28909136,92963.0,92955.0,0.19306428]
[1736451677904,0.215155,92956.0,92955.0,0.19306428]
[1736451678113,0.365155,92956.0,92955.0,0.19306428]
[1736451678320,0.59970511,92956.0,92955.0,0.19306428]
[1736451678530,0.64800748,92956.0,92954.0,0.0001704]
[1736451678738,0.35429976,92955.0,92954.0,0.0001704]
[1736451679142,0.35429976,92955.0,92954.0,0.00066728]
[1736451679367,0.35491434,92955.0,92954.0,0.00066728]
[1736451679577,0.41330527,92955.0,92954.0,0.00066728]
[1736451679783,0.43990151,92955.0,92954.0,0.00066728]
[1736451679992,0.45986711,92955.0,92954.0,0.00066728]
[1736451680206,0.47386711,92955.0,92954.0,0.00166728]
[1736451680406,0.59686711,92955.0,92954.0,0.00166728]
[1736451680610,0.5930435,92955.0,92954.0,0.00066728]
[1736451680819,0.6020435,92955.0,92954.0,0.00166728]
[1736451681035,0.47983268,92955.0,92954.0,0.00166728]
[1736451681246,0.37926536,92955.0,92954.0,0.00066728]
[1736451681455,0.27926536,92955.0,92954.0,0.00066728]
[1736451681663,0.27926536,92955.0,92936.0,0.21101566]
[1736451681839,0.27926536,92955.0,92925.0,8.52e-05]
[1736451681840,0.215174,92948.0,92931.0,0.215211]
[1736451682078,0.215183,92944.0,92931.0,0.215211]
[1736451682455,0.215183,92944.0,92935.0,0.215203]
[1736451682611,0.1336846,92950.0,92939.0,0.215193]
[1736451682822,0.215166,92952.0,92939.0,0.215193]
[1736451683034,0.003,92948.0,92939.0,0.215193]
[1736451683263,0.003,92948.0,92944.0,0.215182]
[1736451683465,0.01991745,92951.0,92944.0,0.215182]
[1736451683669,0.004,92950.0,92944.0,0.215182]
[1736451683864,0.004,92950.0,92941.0,0.215188]
[1736451684090,0.01991745,92951.0,92948.0,0.215173]
[1736451684292,0.01991745,92951.0,92949.0,0.00107571]
[1736451684515,0.00049582,92955.0,92954.0,0.21516]
[1736451686359,0.00049582,92955.0,92954.0,0.31945976]
[1736451686559,0.00049582,92955.0,92954.0,0.31545974]
[1736451687022,0.00049582,92955.0,92954.0,0.31745974]
[1736451687430,0.00049582,92955.0,92954.0,0.31045974]
[1736451687839,0.00049582,92955.0,92954.0,0.31345974]
[1736451688661,0.00049582,92955.0,92954.0,0.31845974]
[1736451689076,0.00049582,92955.0,92954.0,0.31345974]
[1736451689294,0.00149582,92955.0,92954.0,0.32145974]
[1736451689678,0.00149582,92955.0,92954.0,0.011]
[1736451690091,0.00149582,92955.0,92954.0,0.22616]
[1736451691562,0.00149582,92955.0,92954.0,0.21715998]
[1736451692931,0.00149582,92955.0,92954.0,0.00199998]
[1736451693136,0.0231602,92955.0,92954.0,0.00199998]
[1736451693352,0.00149582,92955.0,92954.0,0.00199998]
[1736451693986,0.00149582,92955.0,92954.0,0.18859974]
[1736451694180,0.00149582,92955.0,92954.0,0.18967532]
[1736451695204,0.00149582,92955.0,92954.0,0.18767534]
[1736451695205,0.00049582,92955.0,92954.0,0.18767534]
[1736451695385,0.00249582,92955.0,92954.0,0.18767534]
[1736451695616,0.00349582,92955.0,92954.0,0.18767534]
[1736451695826,0.00149582,92955.0,92954.0,0.18767534]
[1736451696023,0.00249582,92955.0,92954.0,0.19467534]
[1736451696229,0.00149582,92955.0,92954.0,0.19467534]
[1736451696622,0.00149582,92955.0,92954.0,0.18567532]
[1736451696847,0.00049582,92955.0,92954.0,0.17867532]
[1736451697256,0.00049582,92955.0,92954.0,0.17759974]
[1736451697477,0.00049582,92955.0,92954.0,0.17867528]
[1736451697765,0.00149582,92955.0,92954.0,0.17867528]
[1736451698324,0.00249582,92955.0,92954.0,0.18767528]
[1736451698526,0.00149582,92955.0,92954.0,0.17867528]
[1736451698733,0.00049582,92955.0,92954.0,0.17867528]
[1736451699173,0.00149582,92955.0,92954.0,0.18867528]
[1736451699385,0.00049582,92955.0,92954.0,0.17967528]
[1736451699599,0.00049582,92955.0,92954.0,0.17759974]
[1736451699801,0.00149582,92955.0,92954.0,0.18767533]
[1736451700007,0.00249582,92955.0,92954.0,0.18759974]
[1736451700402,0.00249582,92955.0,92954.0,0.10529974]
[1736451700601,0.00149582,92955.0,92954.0,0.10429974]
[1736451700811,0.00049582,92955.0,92954.0,0.09629974]
[1736451701032,0.00049582,92955.0,92954.0,0.09737533]
[1736451701236,0.00049582,92955.0,92954.0,0.09629974]
[1736451701622,0.15,92979.0,92954.0,0.09629974]
[1736451701829,0.10429976,92978.0,92954.0,0.00108541]
[1736451702099,0.215127,92969.0,92956.0,0.215155]
[1736451702296,0.215127,92969.0,92956.0,0.20615498]
[1736451703207,0.0199714,92968.0,92956.0,0.20615498]
[1736451703422,0.0199714,92968.0,92960.0,0.215144]
[1736451704351,0.0199714,92967.0,92960.0,0.215144]
[1736451704527,0.0199714,92967.0,92956.0,0.20615498]
[1736451704721,0.04512184,92966.0,92956.0,0.20615498]
[1736451705608,0.0199714,92965.0,92956.0,0.42130998]
[1736451705822,0.0199714,92965.0,92959.0,0.215146]
[1736451706337,0.0199714,92965.0,92956.0,0.20715498]
[1736451706542,0.0199714,92965.0,92956.0,0.19815496]
[1736451706686,0.0199714,92965.0,92960.0,0.215145]
[1736451707352,0.0199714,92964.0,92960.0,0.215145]
[1736451708233,0.0199714,92963.0,92960.0,0.215145]
[1736451709285,0.0199714,92963.0,92960.0,0.217145]
[1736451709504,0.0199714,92962.0,92960.0,0.215145]
[1736451710082,0.0244673,92972.0,92960.0,0.218145]
[1736451710267,0.215111,92975.0,92960.0,0.216145]
[1736451710465,0.215104,92978.0,92967.0,0.215128]
[1736451710803,0.01933079,92976.0,92971.0,0.215119]
[1736451710964,0.01933079,92976.0,92972.0,0.215118]
[1736451711571,0.15,92981.0,92971.0,0.20611898]
[1736451711776,0.215097,92982.0,92971.0,0.20611898]
[1736451711777,0.15,92982.0,92971.0,0.20611898]
[1736451712406,0.002,92978.0,92971.0,0.20611898]
[1736451712841,0.221097,92981.0,92971.0,0.20711898]
[1736451713224,0.215097,92981.0,92967.0,0.215127]
[1736451713443,0.005,92978.0,92967.0,0.215127]
[1736451713849,0.215097,92981.0,92967.0,0.215127]
[1736451714054,0.224097,92981.0,92971.0,0.001]
[1736451714979,0.215102,92979.0,92971.0,0.001]
[1736451715596,0.001,92978.0,92971.0,0.001]
[1736451715859,0.001,92978.0,92967.0,0.215127]
[1736451716079,0.215106,92977.0,92967.0,0.215127]
[1736451716251,0.215106,92977.0,92966.0,0.21513]
[1736451716413,0.23164065,92977.0,92966.0,0.21513]
[1736451716608,0.23164065,92977.0,92966.0,0.20612998]
[1736451717361,0.215109,92976.0,92963.0,0.215137]
[1736451718500,0.10429976,92975.0,92955.0,0.215157]
[1736451718672,0.215131,92967.0,92955.0,0.430314]
[1736451718870,0.215131,92967.0,92955.0,0.215157]
[1736451720259,0.215131,92967.0,92955.0,0.219157]
[1736451720465,0.215145,92961.0,92955.0,0.001]
[1736451720671,0.215139,92964.0,92955.0,0.001]
[1736451720912,0.215143,92962.0,92955.0,0.002]
[1736451721449,0.430299,92959.0,92955.0,0.001]
[1736451721651,0.215169,92951.0,92940.0,0.20727639]
[1736451721893,0.215169,92951.0,92940.0,0.20777221]
[1736451722119,0.215169,92951.0,92940.0,0.42296421]
[1736451722740,0.215169,92951.0,92940.0,0.00049582]
[1736451722741,0.15,92941.0,92940.0,0.00049582]
[1736451722935,1.27075236,92941.0,92940.0,0.00049582]
[1736451723131,1.41064115,92941.0,92940.0,0.00049582]
[1736451723479,0.365215,92930.0,92920.0,8.52e-05]
[1736451723673,0.46951476,92930.0,92929.0,0.0003194]
[1736451723896,1.58729615,92930.0,92929.0,0.0003194]
[1736451724098,1.61029615,92930.0,92929.0,0.0003194]
[1736451724308,1.6303333,92930.0,92929.0,0.0003194]
[1736451724743,1.6481738,92930.0,92929.0,0.0003194]
[1736451724931,1.7245738,92930.0,92929.0,0.0003194]
[1736451725487,1.82474049,92930.0,92929.0,0.0003194]
[1736451725950,1.72474049,92930.0,92929.0,0.0003194]
[1736451726158,1.69398477,92930.0,92929.0,0.0013194]
[1736451726378,1.67174477,92930.0,92929.0,0.0013194]
[1736451726556,1.67174477,92930.0,92890.0,0.13358544]
[1736451726557,0.15,92929.0,92890.0,0.13358544]
[1736451726796,1.66674477,92930.0,92884.0,0.1]
[1736451726797,0.15,92921.0,92909.0,0.00014852]
[1736451727282,1.33204501,92930.0,92909.0,0.00014852]
[1736451727497,0.215227,92925.0,92911.0,0.215259]
[1736451727920,0.215229,92924.0,92910.0,0.215262]
[1736451728331,0.23526615,92924.0,92910.0,0.215262]
[1736451729167,0.21524,92920.0,92909.0,0.00014852]
[1736451729370,0.21519632,92920.0,92909.0,0.00014852]
[1736451730328,0.27433691,92919.0,92909.0,0.00014852]
[1736451730506,0.215258,92912.0,92909.0,0.00014852]
[1736451730909,0.430516,92912.0,92909.0,0.00014852]
[1736451731636,0.430516,92912.0,92891.0,0.2078016]
[1736451731637,0.215278,92903.0,92891.0,0.2078016]
[1736451731795,0.215278,92903.0,92893.0,0.00014912]
[1736451732661,0.215273,92906.0,92894.0,0.215299]
[1736451732883,0.02003715,92902.0,92894.0,0.215299]
[1736451733287,0.215282,92901.0,92893.0,0.00014912]
[1736451733531,0.10429976,92901.0,92893.0,0.00214912]
[1736451733702,0.365299,92894.0,92893.0,0.00214912]
[1736451733900,0.365299,92894.0,92893.0,0.00014912]
[1736451734179,0.365299,92894.0,92876.0,0.06]
[1736451734180,0.21531,92889.0,92876.0,0.05531952]
[1736451734592,0.13358544,92890.0,92876.0,0.05531952]
[1736451735200,0.10429976,92889.0,92876.0,0.05531952]
[1736451735401,0.21026,92888.0,92876.0,0.05531952]
[1736451735956,0.21026,92888.0,92876.0,0.04531952]
[1736451736386,0.21026,92888.0,92877.0,0.215338]
[1736451736588,0.02003715,92887.0,92876.0,0.04531952]
[1736451737555,0.02748463,92886.0,92876.0,0.04531952]
[1736451737756,0.01701008,92885.0,92876.0,0.04631952]
[1736451737988,0.10429976,92884.0,92876.0,0.04631952]
[1736451738198,0.13178439,92884.0,92876.0,0.04531952]
[1736451738816,0.02003715,92883.0,92876.0,0.04531952]
[1736451739020,0.12433691,92883.0,92876.0,0.04531952]
[1736451739770,0.02003715,92883.0,92880.0,0.215329]
[1736451740008,0.02003715,92882.0,92880.0,0.430659]
[1736451740825,0.13358544,92900.0,92880.0,0.430659]
[1736451740826,0.02003715,92891.0,92880.0,0.430659]
[1736451741039,0.02003715,92891.0,92884.0,0.21532]
[1736451741693,0.02003715,92891.0,92881.0,0.215328]
[1736451742105,0.15362259,92891.0,92881.0,0.215328]
[1736451742295,0.15462259,92891.0,92884.0,0.003]
[1736451742471,0.15362259,92891.0,92881.0,0.215328]
[1736451742903,0.15462259,92891.0,92881.0,0.218328]
[1736451744078,0.02003715,92890.0,92881.0,0.218328]
[1736451744303,0.02003715,92890.0,92885.0,0.215318]
[1736451744511,0.02003715,92890.0,92888.0,0.21531]
[1736451745007,1.07395236,92903.0,92902.0,0.21528]
[1736451745687,1.07395236,92923.0,92911.0,0.215257]
[1736451745892,0.00014871,92920.0,92904.0,0.0801]
[1736451746140,0.00014871,92920.0,92919.0,0.215241]
[1736451746342,0.01989646,92919.0,92917.0,0.215244]
[1736451746545,0.0001704,92929.0,92919.0,0.0784]
[1736451746721,0.0001704,92929.0,92923.0,0.215231]
[1736451746948,0.0001704,92929.0,92928.0,0.21522]
[1736451747126,0.0001704,92929.0,92928.0,0.31951976]
[1736451748035,0.0011704,92929.0,92928.0,0.31951976]
[1736451748240,0.0001704,92929.0,92928.0,0.31951976]
[1736451748450,0.0011704,92929.0,92928.0,0.31951976]
[1736451748659,0.0021704,92929.0,92928.0,0.32251976]
[1736451749245,0.0021704,92929.0,92928.0,0.21822]
[1736451750607,0.0001704,92929.0,92928.0,0.21522]
[1736451750846,0.0011704,92929.0,92928.0,0.32251976]
[1736451751098,0.0001704,92929.0,92928.0,0.31951976]
[1736451751875,0.0011704,92929.0,92928.0,0.32251976]
[1736451752194,0.0001704,92929.0,92928.0,0.31951976]
[1736451752462,0.0021704,92929.0,92928.0,0.32251976]
[1736451754104,0.0021704,92929.0,92928.0,0.21822]
[1736451755367,0.0011704,92929.0,92928.0,0.21522]
[1736451755577,0.0011704,92929.0,92928.0,0.21822]
[1736451755993,0.0001704,92929.0,92928.0,0.21522]
[1736451756851,0.0001704,92929.0,92928.0,0.20621998]
[1736451757507,0.0011704,92929.0,92928.0,0.003]
[1736451757713,0.0011704,92929.0,92926.0,0.430447]
[1736451757924,0.0001704,92929.0,92910.0,0.00014871]
[1736451758143,0.0001704,92929.0,92928.0,0.003]
[1736451758144,0.0011704,92929.0,92928.0,0.003]
[1736451758346,0.0001704,92929.0,92919.0,0.215239]
[1736451758804,0.0001704,92929.0,92917.0,0.215244]
[1736451758994,0.0001704,92929.0,92928.0,0.002]
[1736451759187,0.02195281,92929.0,92921.0,0.215235]
[1736451759394,0.0001704,92929.0,92912.0,0.215257]
[1736451759591,0.0001704,92929.0,92918.0,0.215241]
[1736451760942,0.0001704,92929.0,92921.0,0.215234]
[1736451761374,0.0001704,92929.0,92926.0,0.430448]
[1736451761584,0.0001704,92929.0,92926.0,0.215224]
[1736451761585,0.0011704,92929.0,92926.0,0.215224]
[1736451762579,0.0001704,92929.0,92926.0,0.430448]
[1736451762862,0.0001704,92929.0,92926.0,0.42144798]
[1736451763261,0.0001704,92929.0,92926.0,0.20622398]
[1736451764575,0.0011704,92929.0,92926.0,0.20922398]
[1736451764943,0.0011704,92929.0,92926.0,0.003]
[1736451765358,0.0001704,92929.0,92920.0,0.215238]
[1736451765681,0.0011704,92929.0,92926.0,0.003]
[1736451766681,0.0011704,92929.0,92911.0,0.215258]
[1736451766682,0.0011704,92929.0,92916.0,0.20924598]
[1736451767046,0.0011704,92929.0,92916.0,0.42449398]
[1736451767252,0.0001704,92929.0,92916.0,0.42449398]
[1736451767685,0.21522,92928.0,92916.0,0.42449398]
[1736451767899,0.21522,92928.0,92926.0,0.002]
[1736451768099,0.21522,92928.0,92916.0,0.42449398]
[1736451768525,0.21522,92928.0,92916.0,0.42549398]
[1736451768724,0.21522,92928.0,92916.0,0.42449398]
[1736451769145,0.21522,92928.0,92926.0,0.001]
[1736451770150,0.23746151,92928.0,92926.0,0.001]
[1736451770571,0.43045,92926.0,92911.0,0.215259]
[1736451770775,0.13370103,92921.0,92910.0,0.00014871]
[1736451770979,1.07395236,92921.0,92911.0,0.215259]
[1736451771609,1.07395236,92921.0,92911.0,0.20625898]
[1736451773019,1.07395236,92921.0,92918.0,0.215241]
[1736451773239,0.1721357,92929.0,92918.0,0.215241]
[1736451773449,0.1721357,92929.0,92923.0,0.215231]
[1736451773450,0.0001704,92929.0,92923.0,0.215231]
[1736451773666,0.0001704,92929.0,92927.0,0.21522]
[1736451774518,0.0011704,92929.0,92927.0,0.21522]
[1736451774938,0.0011704,92929.0,92924.0,0.215229]
[1736451775574,0.0011704,92929.0,92910.0,0.00014871]
[1736451775751,0.0011704,92929.0,92925.0,0.215226]
[1736451776361,0.0001704,92929.0,92925.0,0.215226]
[1736451776737,1.15635236,92942.0,92925.0,0.20622598]
[1736451776939,0.215201,92936.0,92925.0,0.20622598]
[1736451778278,0.216201,92936.0,92925.0,0.20622598]
[1736451778491,0.21521,92933.0,92922.0,0.215233]
[1736451778625,0.29347108,92936.0,92910.0,0.00014871]
[1736451778626,0.215219,92929.0,92910.0,0.00014871]
[1736451779755,0.21521,92933.0,92918.0,0.215242]
[1736451779962,0.21521,92933.0,92919.0,0.215241]
[1736451780139,0.13370103,92940.0,92910.0,0.00014871]
[1736451780366,0.31949376,92939.0,92911.0,0.10429976]
[1736451780531,0.215202,92936.0,92911.0,0.10429976]
[1736451781132,0.001,92933.0,92924.0,0.430457]
[1736451781344,0.215202,92936.0,92924.0,0.430457]
[1736451781846,0.215202,92936.0,92924.0,0.42145698]
[1736451782256,0.215212,92932.0,92921.0,0.215235]
[1736451782457,0.31949376,92939.0,92913.0,0.215253]
[1736451782458,0.215224,92927.0,92913.0,0.215253]
[1736451782655,0.215218,92929.0,92916.0,0.215246]
[1736451783472,0.215228,92925.0,92913.0,0.430507]
[1736451783713,0.21522,92928.0,92917.0,0.215244]
[1736451784588,0.21522,92928.0,92904.0,0.0203009]
[1736451784589,0.18069976,92927.0,92896.0,0.0771]
[1736451784799,0.215247,92917.0,92907.0,0.215268]
[1736451785560,1.07395236,92917.0,92900.0,0.215283]
[1736451785769,0.23528936,92916.0,92888.0,0.0781]
[1736451785973,0.02004136,92916.0,92901.0,0.215281]
[1736451786178,0.215259,92911.0,92901.0,0.215281]
[1736451786671,0.21525,92915.0,92905.0,0.215273]
[1736451786858,0.00014901,92911.0,92908.0,0.215265]
[1736451787260,0.00014901,92911.0,92908.0,0.43053]
[1736451787661,0.02004136,92910.0,92908.0,0.43053]
[1736451789111,0.02004136,92909.0,92908.0,0.215265]
[1736451790023,0.00014901,92911.0,92908.0,0.43053]
[1736451791209,0.0200371,92910.0,92908.0,0.215265]
[1736451791630,0.0200371,92910.0,92908.0,0.20626498]
[1736451792070,0.0200371,92909.0,92908.0,0.20626498]
[1736451794721,0.0200371,92909.0,92898.0,0.215288]
[1736451794924,0.0200371,92909.0,92888.0,0.19306428]
[1736451795130,0.02841871,92908.0,92888.0,0.19306428]
[1736451795356,0.215269,92907.0,92894.0,0.215298]
[1736451795569,0.1700371,92909.0,92894.0,0.215298]
[1736451796039,0.0200371,92907.0,92894.0,0.215298]
[1736451796239,0.0200371,92907.0,92904.0,0.215274]
[1736451796651,0.0200371,92907.0,92902.0,0.20627898]
[1736451797123,0.0200371,92906.0,92902.0,0.20627898]
[1736451797338,0.0200371,92906.0,92904.0,0.215275]
[1736451797553,0.0200371,92906.0,92904.0,0.0757]
[1736451797737,0.0200371,92906.0,92894.0,0.0757]
[1736451797957,0.0200371,92906.0,92905.0,0.215273]
[1736451798082,0.001,92907.0,92905.0,0.215273]
[1736451798308,0.001,92907.0,92902.0,0.21528]
[1736451799149,0.00014901,92911.0,92902.0,0.21528]
[1736451799667,0.00014901,92911.0,92878.0,8.52e-05]
[1736451799668,0.15,92904.0,92878.0,8.52e-05]
[1736451799876,0.15,92888.0,92878.0,8.52e-05]
[1736451800080,0.215324,92883.0,92882.0,8.52e-05]
[1736451800283,0.365324,92883.0,92882.0,8.52e-05]
[1736451800537,0.3974929,92883.0,92882.0,8.52e-05]
[1736451801161,0.41751647,92883.0,92882.0,8.52e-05]
[1736451801789,0.15,92880.0,92876.0,0.0364899]
[1736451802001,0.05219247,92883.0,92876.0,0.0364899]
[1736451802002,0.02002357,92883.0,92876.0,0.0364899]
[1736451802447,0.02002357,92882.0,92876.0,0.0364899]
[1736451802671,0.215329,92881.0,92876.0,0.0364899]
[1736451803091,0.02002357,92882.0,92876.0,0.0364899]
[1736451803289,0.215338,92878.0,92876.0,0.0364899]
[1736451805096,0.17677617,92879.0,92876.0,0.0364899]
[1736451805301,0.15,92877.0,92876.0,0.0364899]
[1736451805727,0.15,92877.0,92871.0,8.52e-05]
[1736451805728,0.36535,92872.0,92871.0,8.52e-05]
[1736451805939,1.43930236,92872.0,92871.0,8.52e-05]
[1736451806733,0.13370103,92861.0,92851.0,0.20665358]
[1736451806937,1.20765339,92861.0,92851.0,0.20680257]
[1736451807344,0.215377,92860.0,92851.0,0.00014899]
[1736451807546,0.23530076,92860.0,92851.0,0.00014899]
[1736451807757,0.01992376,92860.0,92851.0,0.00014899]
[1736451808643,0.21538,92859.0,92851.0,0.00014899]
[1736451808852,0.01992376,92860.0,92851.0,0.00014899]
[1736451811639,0.01992376,92860.0,92846.0,0.00514367]
[1736451811933,0.21539,92855.0,92846.0,0.00514367]
[1736451812827,0.01992376,92854.0,92846.0,0.00514367]
[1736451813670,0.215394,92853.0,92846.0,0.00514367]
[1736451814768,0.215406,92848.0,92846.0,0.00514367]
[1736451816374,0.215396,92852.0,92846.0,0.00514367]
[1736451816580,0.02059434,92854.0,92846.0,0.00514367]
[1736451816790,0.001,92854.0,92829.0,0.02018217]
[1736451817004,0.15,92863.0,92838.0,0.1136767]
[1736451817214,0.13384993,92860.0,92847.0,0.215407]
[1736451818107,0.001,92854.0,92847.0,0.215407]
[1736451818529,0.001,92852.0,92851.0,0.215398]
[1736451818730,0.001,92854.0,92851.0,0.215398]
[1736451819144,0.001,92854.0,92851.0,0.430796]
[1736451819564,0.0001489,92860.0,92854.0,0.21539]
[1736451820740,0.0001489,92860.0,92847.0,0.215407]
[1736451820949,0.0001489,92860.0,92842.0,0.215417]
[1736451820950,0.01533609,92859.0,92842.0,0.215417]
[1736451821148,0.215388,92856.0,92851.0,0.003]
[1736451821558,0.215388,92856.0,92839.0,0.215424]
[1736451821982,0.215388,92856.0,92847.0,0.002]
[1736451822274,0.215388,92856.0,92839.0,0.215424]
[1736451822275,0.06193399,92855.0,92839.0,0.215424]
[1736451822459,0.06193399,92855.0,92851.0,0.002]
[1736451822881,0.215398,92852.0,92839.0,0.215424]
[1736451823089,0.215398,92852.0,92837.0,0.083]
[1736451823090,1.07395236,92859.0,92847.0,0.002]
[1736451824806,0.215388,92856.0,92847.0,0.002]
[1736451825013,0.215388,92856.0,92837.0,0.298429]
[1736451825014,1.07395236,92859.0,92837.0,0.083]
[1736451825223,0.215382,92858.0,92851.0,0.002]
[1736451825395,0.215397,92852.0,92851.0,0.002]
[1736451825568,0.215397,92852.0,92837.0,0.298429]
[1736451826558,0.215397,92852.0,92840.0,0.215422]
[1736451826747,0.216397,92852.0,92837.0,0.298429]
[1736451826946,0.217397,92852.0,92837.0,0.298429]
[1736451827174,0.0648166,92851.0,92837.0,0.298429]
[1736451827374,0.215401,92850.0,92837.0,0.298429]
[1736451827801,0.215401,92850.0,92837.0,0.215429]
[1736451828061,0.215401,92850.0,92837.0,0.205429]
[1736451828508,0.0648166,92851.0,92837.0,0.205429]
[1736451828741,0.216397,92852.0,92840.0,0.215423]
[1736451828932,0.15,92854.0,92840.0,0.215423]
[1736451829401,0.215412,92846.0,92832.0,0.215442]
[1736451829604,0.215413,92845.0,92832.0,0.215441]
[1736451830028,0.215403,92849.0,92835.0,0.215434]
[1736451830242,0.23949991,92849.0,92835.0,0.215434]
[1736451830443,0.215403,92849.0,92835.0,0.215434]
[1736451831711,0.215403,92849.0,92835.0,0.20643398]
[1736451832278,0.15,92856.0,92842.0,0.215418]
[1736451832497,0.0001489,92860.0,92844.0,0.0784]
[1736451832701,0.0001489,92860.0,92857.0,0.430766]
[1736451832919,0.0001489,92860.0,92858.0,0.18207643]
[1736451833144,0.0001489,92860.0,92859.0,0.21538]
[1736451833358,0.0001489,92860.0,92859.0,0.31967976]
[1736451833610,0.0001489,92860.0,92859.0,0.21538]
[1736451834268,0.0001489,92860.0,92858.0,0.0767]
[1736451834491,0.0001489,92860.0,92855.0,0.215387]
[1736451835013,0.0001489,92860.0,92859.0,0.002]
[1736451835014,0.0011489,92860.0,92859.0,0.002]
[1736451835242,0.0001489,92860.0,92855.0,0.215387]
[1736451835490,0.0011489,92860.0,92859.0,0.001]
[1736451835837,0.0001489,92860.0,92855.0,0.215387]
[1736451836242,0.0011489,92860.0,92859.0,0.004]
[1736451836674,0.0011489,92860.0,92851.0,0.0767]
[1736451836873,0.0011489,92860.0,92847.0,0.215406]
[1736451837052,0.0011489,92860.0,92855.0,0.002]
[1736451837459,0.18941158,92859.0,92855.0,0.002]
[1736451838088,0.15,92859.0,92855.0,0.002]
[1736451838334,0.15,92856.0,92855.0,0.002]
[1736451838594,0.21542,92842.0,92829.0,0.19306428]
[1736451838791,0.215403,92850.0,92827.0,0.32401545]
[1736451838792,0.215412,92845.0,92830.0,0.31974676]
[1736451839028,0.215421,92842.0,92827.0,0.2981371]
[1736451839235,0.215428,92839.0,92827.0,0.2981371]
[1736451839447,0.215437,92835.0,92827.0,8.51e-05]
[1736451839660,0.15,92837.0,92827.0,8.51e-05]
[1736451839870,0.215447,92830.0,92827.0,8.51e-05]
[1736451840302,0.430895,92830.0,92827.0,8.51e-05]
[1736451840445,0.215452,92828.0,92827.0,8.51e-05]
[1736451841273,0.46975176,92828.0,92827.0,0.00058195]
[1736451841677,0.49735137,92828.0,92827.0,0.00058195]
[1736451842032,0.50235137,92828.0,92827.0,0.00058195]
[1736451842235,0.50235137,92828.0,92799.0,8.53e-05]
[1736451842236,0.215517,92800.0,92787.0,0.31484813]
[1736451842440,0.215517,92800.0,92788.0,0.10429976]
[1736451842441,0.2370687,92800.0,92788.0,0.10429976]
[1736451842863,1.07395236,92802.0,92787.0,0.00014927]
[1736451843073,0.215514,92801.0,92787.0,0.00014927]
[1736451843267,0.215525,92797.0,92787.0,0.00014927]
[1736451844871,0.21552,92799.0,92788.0,0.215545]
[1736451845189,0.215512,92803.0,92788.0,0.43109]
[1736451845362,0.215502,92807.0,92789.0,0.215542]
[1736451845567,0.215502,92807.0,92793.0,0.215533]
[1736451845777,0.215483,92815.0,92787.0,0.00014927]
[1736451845989,1.07395236,92823.0,92807.0,0.215499]
[1736451846241,1.07395236,92833.0,92815.0,0.215481]
[1736451846466,0.0309289,92827.0,92813.0,0.0757]
[1736451846669,0.215452,92828.0,92813.0,0.06669998]
[1736451846876,0.215462,92824.0,92813.0,0.06669998]
[1736451847298,0.002,92823.0,92813.0,0.06669998]
[1736451847501,0.002,92823.0,92813.0,0.28233525]
[1736451847677,0.002,92823.0,92813.0,0.33211827]
[1736451847880,0.002,92823.0,92813.0,0.28233525]
[1736451848463,0.001,92824.0,92813.0,0.28233525]
[1736451848860,0.003,92824.0,92813.0,0.28233525]
[1736451849289,0.215461,92825.0,92813.0,0.28233525]
[1736451849932,0.215463,92823.0,92813.0,0.06684925]
[1736451850145,0.0647376,92822.0,92813.0,0.06684925]
[1736451851419,0.0647376,92822.0,92813.0,0.00014927]
[1736451851625,0.215468,92821.0,92813.0,0.00014927]
[1736451851830,0.215468,92821.0,92809.0,0.20664425]
[1736451852058,0.21561694,92821.0,92809.0,0.20664425]
[1736451852449,0.00014894,92821.0,92809.0,0.20664425]
[1736451853283,0.00014894,92821.0,92812.0,0.215487]